bitfinex-derivatives/quotes_BTCF0:USTF0_20251028
["timestamp","ask_amount","ask_price","bid_price","bid_amount"]
[1761663403573,0.3653,115280.0,115270.0,0.57366647]
[1761663403774,0.3653,115280.0,115270.0,0.57626647]
[1761663403978,0.3653,115280.0,115270.0,0.57366647]
[1761663404178,0.3653,115280.0,115270.0,0.24205117]
[1761663404374,0.3653,115280.0,115270.0,0.59687254]
[1761663404576,0.3653,115280.0,115270.0,0.59947254]
[1761663404973,0.40869,115280.0,115270.0,0.2188452]
[1761663405170,0.41069,115280.0,115270.0,0.59687264]
[1761663405479,0.41069,115280.0,115270.0,0.51011404]
[1761663405681,0.38841,115280.0,115270.0,0.2188452]
[1761663405979,0.38841,115280.0,115270.0,0.57366657]
[1761663406282,0.38841,115280.0,115270.0,0.59687264]
[1761663406283,0.41069,115280.0,115270.0,0.59687264]
[1761663407372,0.41069,115280.0,115270.0,0.28090504]
[1761663408082,0.41069,115280.0,115270.0,0.63572641]
[1761663408278,0.41069,115280.0,115270.0,0.28090504]
[1761663408777,0.41069,115280.0,115270.0,0.19414644]
[1761663408970,0.78496,115280.0,115270.0,0.06428043]
[1761663409177,1.38496,115280.0,115270.0,0.0024]
[1761663409775,1.38296,115280.0,115270.0,0.0024]
[1761663409979,0.04339,115270.0,115260.0,0.06188043]
[1761663410172,0.04339,115250.0,115240.0,0.07741417]
[1761663410376,0.76499,115250.0,115240.0,0.07741417]
[1761663410577,0.04339,115240.0,115230.0,0.18364959]
[1761663410879,0.41903,115240.0,115230.0,0.20713227]
[1761663411182,0.41643,115240.0,115230.0,0.20713227]
[1761663411583,0.41903,115240.0,115230.0,0.20713227]
[1761663411979,0.41903,115240.0,115230.0,0.09875417]
[1761663412187,0.41903,115240.0,115230.0,0.07841417]
[1761663412573,0.41903,115240.0,115230.0,0.001]
[1761663412975,0.41903,115240.0,115230.0,0.087788]
[1761663413183,0.40419,115240.0,115230.0,0.20813217]
[1761663413579,0.40419,115240.0,115230.0,0.56295354]
[1761663413780,0.3608,115240.0,115230.0,0.48813937]
[1761663414081,0.3608,115250.0,115240.0,0.1432205]
[1761663414280,0.40419,115260.0,115250.0,0.129703]
[1761663414580,0.38191,115260.0,115250.0,0.59319115]
[1761663414778,0.3608,115260.0,115250.0,0.67997034]
[1761663415180,0.3608,115260.0,115250.0,0.68257034]
[1761663415681,0.3608,115260.0,115250.0,0.57390356]
[1761663415974,0.3608,115260.0,115250.0,0.57130356]
[1761663416175,0.3608,115270.0,115260.0,0.02134]
[1761663416382,0.40419,115270.0,115260.0,0.13408602]
[1761663416581,0.40419,115270.0,115260.0,0.22085202]
[1761663416985,0.38191,115270.0,115260.0,0.22085202]
[1761663417288,0.38191,115270.0,115260.0,0.25187278]
[1761663417483,0.33390264,115270.0,115260.0,0.27337192]
[1761663417785,0.33390264,115270.0,115260.0,0.18660592]
[1761663418185,0.33650264,115270.0,115260.0,0.13016592]
[1761663418888,0.33390264,115270.0,115260.0,0.17418592]
[1761663419087,0.33650264,115270.0,115260.0,0.13016592]
[1761663419392,0.33650264,115270.0,115260.0,0.20790054]
[1761663419580,0.33390264,115270.0,115260.0,0.14323376]
[1761663419783,0.33390264,115270.0,115260.0,0.24322986]
[1761663420082,0.33390264,115270.0,115260.0,0.59805123]
[1761663420276,0.33295264,115270.0,115260.0,0.1439961]
[1761663420475,0.33295264,115270.0,115260.0,0.25266288]
[1761663420679,0.33295264,115270.0,115260.0,0.33043079]
[1761663420882,0.33295264,115270.0,115260.0,0.57658538]
[1761663421191,0.31162264,115270.0,115260.0,0.59782721]
[1761663421492,0.33359264,115270.0,115260.0,0.24300584]
[1761663421888,0.33359264,115270.0,115260.0,0.59782721]
[1761663422288,0.33359264,115270.0,115260.0,0.5200593]
[1761663422587,0.33619264,115270.0,115260.0,0.09907789]
[1761663422784,0.93619264,115270.0,115260.0,0.09907789]
[1761663423486,0.33619264,115270.0,115260.0,0.09907789]
[1761663423983,0.33619264,115270.0,115260.0,0.02124183]
[1761663424581,0.36619264,115270.0,115260.0,0.02124183]
[1761663424883,0.0205,115260.0,115250.0,0.07783606]
[1761663425083,0.3839,115260.0,115250.0,0.07523606]
[1761663425390,0.0205,115240.0,115230.0,0.19545538]
[1761663425588,0.3813,115240.0,115230.0,0.19545538]
[1761663425786,0.3813,115240.0,115230.0,0.10866678]
[1761663425982,1.09952137,115240.0,115230.0,0.10866678]
[1761663426388,0.0205,115230.0,115220.0,0.10906678]
[1761663426692,0.3839,115230.0,115220.0,0.10906678]
[1761663427394,0.4013,115230.0,115200.0,0.16757008]
[1761663427691,0.7216,115210.0,115200.0,0.01323]
[1761663428092,1.3242,115210.0,115200.0,0.01323]
[1761663428280,1.3242,115210.0,115200.0,0.03455]
[1761663428679,1.3242,115210.0,115200.0,0.01323]
[1761663428998,0.7242,115210.0,115200.0,0.01723]
[1761663429291,0.7242,115210.0,115200.0,0.06023]
[1761663429489,0.7216,115210.0,115200.0,0.1496411]
[1761663429987,0.70749195,115210.0,115200.0,0.1496411]
[1761663430292,0.70749195,115210.0,115200.0,0.06023]
[1761663430492,0.70749195,115210.0,115200.0,0.06123]
[1761663430687,0.71009195,115210.0,115200.0,0.06123]
[1761663431294,0.71009195,115210.0,115200.0,0.06323]
[1761663431589,0.70749195,115210.0,115200.0,0.1526411]
[1761663431778,0.70749195,115210.0,115200.0,0.1500411]
[1761663432181,0.70749195,115210.0,115200.0,0.1526411]
[1761663432892,0.3608,115220.0,115210.0,0.043]
[1761663433088,0.3608,115220.0,115200.0,0.04176]
[1761663433392,0.3608,115210.0,115200.0,0.04176]
[1761663433693,0.3608,115210.0,115200.0,0.06323]
[1761663434088,0.3608,115210.0,115200.0,0.06223]
[1761663434289,0.3608,115210.0,115200.0,0.13993548]
[1761663434492,0.3608,115210.0,115200.0,0.22074668]
[1761663434688,0.3608,115210.0,115200.0,0.13793548]
[1761663435188,0.3634,115210.0,115200.0,0.13893548]
[1761663435394,0.3608,115210.0,115200.0,0.14093548]
[1761663436286,0.3608,115210.0,115200.0,0.23034668]
[1761663436494,0.3608,115210.0,115200.0,0.1526412]
[1761663436797,0.3608,115220.0,115200.0,0.5732319]
[1761663436984,0.3608,115220.0,115210.0,0.12327687]
[1761663437186,0.3608,115220.0,115210.0,0.12067687]
[1761663437886,0.3608,115220.0,115210.0,0.21008047]
[1761663438895,0.3608,115220.0,115210.0,0.56890184]
[1761663439190,0.3608,115220.0,115210.0,0.004]
[1761663439191,1.31562137,115220.0,115210.0,0.004]
[1761663439382,0.73822137,115220.0,115210.0,0.0661614]
[1761663439584,0.74822137,115220.0,115210.0,0.0661614]
[1761663439776,0.76822137,115220.0,115210.0,0.0661614]
[1761663439981,0.74822137,115220.0,115210.0,0.0661614]
[1761663440192,0.76822137,115220.0,115210.0,0.0661614]
[1761663440496,0.76822137,115220.0,115210.0,0.004]
[1761663440687,0.80822136,115220.0,115210.0,0.0635614]
[1761663440885,0.80822136,115220.0,115210.0,0.04662183]
[1761663441287,0.80822136,115220.0,115210.0,0.04862183]
[1761663441489,0.79562136,115220.0,115210.0,0.04602183]
[1761663441694,0.91822136,115220.0,115210.0,0.04602183]
[1761663442190,0.91822136,115220.0,115210.0,0.07709084]
[1761663442395,0.94822136,115220.0,115210.0,0.07709084]
[1761663443193,0.94822136,115220.0,115210.0,0.07609084]
[1761663444890,1.15822136,115220.0,115210.0,0.07609084]
[1761663445190,0.91822136,115220.0,115210.0,0.04502183]
[1761663445397,0.0249,115210.0,115190.0,0.07776153]
[1761663445696,0.72562136,115200.0,115190.0,8.466e-05]
[1761663445995,1.22822137,115200.0,115190.0,8.466e-05]
[1761663446192,1.83822136,115200.0,115190.0,8.466e-05]
[1761663446498,1.24714357,115200.0,115180.0,0.01323]
[1761663446698,0.71822137,115190.0,115180.0,0.01063]
[1761663446998,1.01822137,115190.0,115180.0,0.01063]
[1761663447299,1.12822137,115190.0,115180.0,0.01063]
[1761663447491,1.12829291,115190.0,115180.0,0.01063]
[1761663447890,0.88829291,115190.0,115180.0,0.01063]
[1761663448397,0.36087154,115190.0,115180.0,0.05363]
[1761663448599,0.35175883,115190.0,115180.0,0.05363]
[1761663449000,0.7091802,115190.0,115180.0,0.05363]
[1761663449199,0.7065802,115190.0,115180.0,0.05363]
[1761663449392,0.35175883,115190.0,115180.0,0.05363]
[1761663449892,0.35435883,115190.0,115180.0,0.01063]
[1761663450094,0.7191802,115190.0,115180.0,0.01063]
[1761663450406,0.7165802,115190.0,115180.0,0.01063]
[1761663450891,0.7165802,115190.0,115180.0,0.07282654]
[1761663451093,0.7191802,115190.0,115180.0,0.07282654]
[1761663451288,0.7141802,115190.0,115180.0,0.07282654]
[1761663451489,0.7201802,115190.0,115180.0,0.07282654]
[1761663452000,0.7141802,115190.0,115180.0,0.07282654]
[1761663452196,0.7191802,115190.0,115180.0,0.07282654]
[1761663453200,0.7165802,115190.0,115180.0,0.09546654]
[1761663453996,0.7165802,115190.0,115180.0,0.07282654]
[1761663454293,0.7191802,115190.0,115180.0,0.07282654]
[1761663454495,0.7391802,115190.0,115180.0,0.07282654]
[1761663454692,0.7391802,115190.0,115180.0,0.01063]
[1761663454895,0.7691802,115190.0,115180.0,0.01063]
[1761663455402,0.9291802,115190.0,115180.0,0.01063]
[1761663456406,0.52175883,115190.0,115180.0,0.11826654]
[1761663456901,0.52175883,115190.0,115180.0,0.05607]
[1761663457204,0.8765802,115190.0,115180.0,0.05607]
[1761663459402,0.8765802,115190.0,115180.0,0.11826654]
[1761663460106,0.35175883,115190.0,115180.0,0.11826654]
[1761663461398,0.7065802,115190.0,115180.0,0.11826654]
[1761663461593,0.35175883,115190.0,115180.0,0.11826654]
[1761663461898,0.7165802,115190.0,115180.0,0.11826654]
[1761663462104,0.7165802,115190.0,115180.0,0.05607]
[1761663462305,0.7165802,115190.0,115180.0,0.11826654]
[1761663463093,0.7065802,115190.0,115180.0,0.11826654]
[1761663463490,0.35175883,115190.0,115180.0,0.11826654]
[1761663463802,0.61694551,115190.0,115180.0,0.1287512]
[1761663464004,0.61694551,115190.0,115180.0,0.11826654]
[1761663466800,0.35175883,115190.0,115180.0,0.11826654]
[1761663467006,0.62694551,115190.0,115180.0,0.11826654]
[1761663467191,0.64694551,115190.0,115180.0,0.07282654]
[1761663467398,0.64954551,115190.0,115180.0,0.01063]
[1761663467597,0.95954551,115190.0,115180.0,0.01063]
[1761663467893,0.78954551,115190.0,115180.0,0.01063]
[1761663468408,0.79054551,115190.0,115180.0,0.01063]
[1761663469205,0.78554551,115190.0,115180.0,0.01063]
[1761663469505,0.79054551,115190.0,115180.0,0.01063]
[1761663470097,0.80054551,115190.0,115180.0,0.01063]
[1761663470298,0.79954551,115190.0,115180.0,0.01063]
[1761663470498,0.80054551,115190.0,115180.0,0.01063]
[1761663472608,1.40054551,115190.0,115180.0,0.01063]
[1761663472998,0.79054551,115190.0,115180.0,0.01063]
[1761663473204,1.04054551,115190.0,115180.0,0.01063]
[1761663473609,1.04054551,115190.0,115170.0,0.06338122]
[1761663473810,0.62858668,115180.0,115170.0,0.06338122]
[1761663474107,0.73858668,115180.0,115170.0,0.06338122]
[1761663474494,0.75598668,115180.0,115170.0,0.06338122]
[1761663474708,0.75858668,115180.0,115170.0,0.06338122]
[1761663475303,0.76158668,115180.0,115170.0,0.06338122]
[1761663476109,1.34158668,115180.0,115160.0,0.01323]
[1761663476300,0.89117336,115170.0,115160.0,0.09127687]
[1761663476505,0.89117336,115170.0,115160.0,0.05904]
[1761663476506,0.67598668,115170.0,115160.0,0.05904]
[1761663477399,0.67598668,115170.0,115160.0,0.13671687]
[1761663477709,0.3608,115170.0,115160.0,0.06952466]
[1761663477923,0.62598668,115170.0,115160.0,0.06952466]
[1761663479503,0.38413278,115170.0,115160.0,0.06952466]
[1761663479707,0.38513278,115170.0,115160.0,0.66952466]
[1761663480304,0.38513278,115170.0,115160.0,0.05904]
[1761663480305,0.67352277,115170.0,115160.0,0.05904]
[1761663480512,0.70132351,115170.0,115160.0,0.0136]
[1761663481106,0.82817451,115170.0,115160.0,0.0136]
[1761663481319,1.13394681,115170.0,115160.0,0.0136]
[1761663481613,1.39277451,115170.0,115150.0,0.0136]
[1761663481813,0.65175724,115160.0,115150.0,0.0136]
[1761663482013,0.90517468,115160.0,115150.0,0.0136]
[1761663482212,0.93200412,115160.0,115140.0,0.0136]
[1761663482411,0.62598668,115150.0,115140.0,0.0136]
[1761663482709,0.64931946,115150.0,115140.0,0.05822]
[1761663483307,1.29710614,115150.0,115140.0,0.0136]
[1761663483501,1.5002767,115150.0,115140.0,0.0136]
[1761663483707,1.1702767,115150.0,115140.0,0.0136]
[1761663484010,0.63730334,115150.0,115140.0,0.05822]
[1761663484207,0.64931946,115150.0,115140.0,0.05822]
[1761663485506,0.64931946,115150.0,115140.0,0.05922]
[1761663486410,0.91450614,115150.0,115140.0,0.05922]
[1761663486618,0.97710614,115150.0,115140.0,0.0146]
[1761663486816,0.97691996,115150.0,115140.0,0.0146]
[1761663487207,1.27698188,115150.0,115130.0,0.01794273]
[1761663487407,0.62598668,115140.0,115130.0,0.06256273]
[1761663487620,0.66913328,115140.0,115130.0,0.06256273]
[1761663487822,0.66913328,115140.0,115130.0,0.07304739]
[1761663488231,0.64913328,115140.0,115130.0,0.07304739]
[1761663488615,0.64913328,115140.0,115130.0,0.07704739]
[1761663488816,0.62598668,115140.0,115130.0,0.07704739]
[1761663489120,0.62598668,115140.0,115130.0,0.06656273]
[1761663489420,0.62598668,115140.0,115130.0,0.07704739]
[1761663489621,0.3608,115140.0,115130.0,0.07704739]
[1761663490922,0.62598668,115140.0,115130.0,0.07804739]
[1761663491416,0.3608,115140.0,115130.0,0.07804739]
[1761663491614,0.3608,115140.0,115130.0,0.08064739]
[1761663493020,0.3608,115140.0,115130.0,0.16751079]
[1761663493617,0.3608,115140.0,115130.0,0.08064739]
[1761663493819,0.62598668,115140.0,115130.0,0.07804739]
[1761663494023,0.62598668,115140.0,115130.0,0.06756273]
[1761663494429,0.62598668,115140.0,115130.0,0.07804739]
[1761663498932,0.62598668,115140.0,115130.0,0.06756273]
[1761663499641,0.62598668,115140.0,115130.0,0.07804739]
[1761663500236,0.64901236,115140.0,115130.0,0.07804739]
[1761663502232,0.64901236,115140.0,115130.0,0.06756273]
[1761663502843,0.64901236,115140.0,115130.0,0.07804739]
[1761663503642,0.3608,115140.0,115130.0,0.08064739]
[1761663503831,0.3608,115140.0,115130.0,0.07804739]
[1761663504034,0.62598668,115140.0,115130.0,0.07804739]
[1761663504434,0.3608,115140.0,115130.0,0.06756273]
[1761663504633,0.3608,115140.0,115130.0,0.08064739]
[1761663505238,0.3608,115140.0,115130.0,0.07804739]
[1761663505639,0.3608,115140.0,115130.0,0.08064739]
[1761663506842,0.3608,115140.0,115130.0,0.07804739]
[1761663507243,0.3608,115140.0,115130.0,0.16751069]
[1761663507745,0.35031534,115140.0,115130.0,0.15702603]
[1761663508345,0.35031534,115140.0,115130.0,0.13531603]
[1761663508544,0.61550202,115140.0,115130.0,0.06772273]
[1761663508849,0.63860835,115140.0,115130.0,0.06772273]
[1761663509046,0.37342167,115140.0,115130.0,0.06772273]
[1761663510052,0.39646812,115140.0,115130.0,0.06772273]
[1761663510351,0.37342167,115140.0,115130.0,0.06772273]
[1761663510750,0.37342167,115140.0,115130.0,0.07032273]
[1761663511051,0.37342167,115140.0,115130.0,0.67032273]
[1761663511349,0.37342167,115140.0,115130.0,0.42237271]
[1761663512254,0.26044013,115140.0,115130.0,0.42237271]
[1761663513049,6.192e-05,115150.0,115140.0,0.1437058]
[1761663513246,6.192e-05,115150.0,115140.0,0.1463058]
[1761663513447,6.192e-05,115150.0,115140.0,0.41149248]
[1761663513758,6.192e-05,115150.0,115140.0,0.77229248]
[1761663514458,0.09586192,115150.0,115140.0,0.41249248]
[1761663514645,0.45666192,115150.0,115140.0,0.1473058]
[1761663514842,0.45666192,115150.0,115140.0,0.41249248]
[1761663515046,0.09586192,115150.0,115140.0,0.41249248]
[1761663515551,0.09586192,115150.0,115140.0,0.1473058]
[1761663516050,0.45666192,115150.0,115140.0,0.1473058]
[1761663516555,0.45666192,115150.0,115140.0,0.41249248]
[1761663517047,0.09586192,115150.0,115140.0,1.01249248]
[1761663517853,0.45666192,115150.0,115140.0,0.32303668]
[1761663518056,0.45666192,115150.0,115140.0,0.05785]
[1761663518551,0.45666192,115150.0,115140.0,0.144706]
[1761663520059,0.09586192,115150.0,115140.0,0.144706]
[1761663520558,0.45666192,115150.0,115140.0,0.144706]
[1761663520860,0.09586192,115150.0,115140.0,0.144706]
[1761663521061,0.45666192,115150.0,115140.0,0.144706]
[1761663521563,0.09586192,115150.0,115140.0,0.41249268]
[1761663521759,0.09586192,115150.0,115140.0,1.37329268]
[1761663522259,0.09586192,115150.0,115140.0,0.77329268]
[1761663523360,0.09586192,115150.0,115140.0,0.41249268]
[1761663523562,0.09586192,115150.0,115140.0,0.147306]
[1761663523860,0.09586192,115150.0,115140.0,0.744706]
[1761663524161,0.09586192,115150.0,115140.0,0.144706]
[1761663525060,0.09586192,115150.0,115140.0,0.05785]
[1761663526062,6.192e-05,115150.0,115140.0,0.05785]
[1761663527365,0.71654055,115150.0,115140.0,0.05785]
[1761663527660,0.36086192,115150.0,115140.0,0.05785]
[1761663528061,0.36346192,115150.0,115140.0,0.05785]
[1761663528463,0.71914055,115150.0,115140.0,0.05785]
[1761663528854,0.74214791,115150.0,115140.0,0.05785]
[1761663530272,0.73954791,115150.0,115140.0,0.05785]
[1761663530562,0.38386928,115150.0,115140.0,0.05785]
[1761663530865,0.36086192,115150.0,115140.0,0.05785]
[1761663531456,0.36346192,115150.0,115140.0,0.05785]
[1761663531859,0.71914055,115150.0,115140.0,0.05785]
[1761663532063,0.74216196,115150.0,115140.0,0.05785]
[1761663534966,0.73956196,115150.0,115140.0,0.05785]
[1761663536462,0.74056196,115150.0,115140.0,0.05785]
[1761663536662,0.38488333,115150.0,115140.0,0.05785]
[1761663536862,0.74056196,115150.0,115140.0,0.05685]
[1761663537164,0.36786192,115150.0,115140.0,0.05685]
[1761663537669,0.72354055,115150.0,115140.0,0.05685]
[1761663537869,0.36786192,115150.0,115140.0,0.05685]
[1761663538165,0.36186192,115150.0,115140.0,0.05685]
[1761663538462,0.36586192,115150.0,115140.0,0.05685]
[1761663538669,0.36486192,115150.0,115140.0,0.05685]
[1761663539968,0.36086192,115150.0,115140.0,0.05685]
[1761663540167,0.36486192,115150.0,115140.0,0.05685]
[1761663540558,0.72054055,115150.0,115140.0,0.05685]
[1761663540762,0.72314055,115150.0,115140.0,0.05685]
[1761663541768,0.72314055,115150.0,115140.0,0.01318]
[1761663541963,0.74314055,115150.0,115140.0,0.01318]
[1761663542162,0.72314055,115150.0,115140.0,0.01318]
[1761663542362,0.72314055,115150.0,115140.0,0.03504]
[1761663542568,0.72314055,115150.0,115140.0,0.01318]
[1761663542965,0.99625961,115150.0,115130.0,0.01794273]
[1761663543161,0.3634,115140.0,115130.0,0.01794273]
[1761663544174,0.71647863,115140.0,115130.0,0.06157273]
[1761663544364,0.3608,115140.0,115130.0,0.06157273]
[1761663544678,0.3628,115140.0,115130.0,0.06157273]
[1761663545068,0.72107863,115140.0,115130.0,0.01794273]
[1761663545272,0.75107863,115140.0,115130.0,0.01794273]
[1761663546670,0.84687863,115140.0,115130.0,0.01794273]
[1761663547870,0.87000367,115140.0,115130.0,0.03980273]
[1761663548270,0.880619,115140.0,115130.0,0.03980273]
[1761663548468,0.880619,115140.0,115130.0,0.01794273]
[1761663548664,0.880619,115140.0,115130.0,0.03980273]
[1761663549068,0.880619,115140.0,115130.0,0.01794273]
[1761663549276,0.804819,115140.0,115130.0,0.01794273]
[1761663549478,0.974819,115140.0,115130.0,0.01794273]
[1761663549677,0.954819,115140.0,115130.0,0.01794273]
[1761663550081,0.94160367,115140.0,115130.0,0.06157273]
[1761663550381,0.94420367,115140.0,115130.0,0.06157273]
[1761663550677,0.96420367,115140.0,115130.0,0.01794273]
[1761663550883,0.94420367,115140.0,115130.0,0.06157273]
[1761663551081,0.94160367,115140.0,115130.0,0.06157273]
[1761663557076,0.94620367,115140.0,115130.0,0.06060273]
[1761663557280,0.94360367,115140.0,115130.0,0.06060273]
[1761663557482,0.94620367,115140.0,115130.0,0.06060273]
[1761663557882,0.94360367,115140.0,115130.0,0.06060273]
[1761663559883,0.38792504,115140.0,115130.0,0.06060273]
[1761663560084,0.38792504,115140.0,115130.0,0.06320273]
[1761663560287,0.3648,115140.0,115130.0,0.06320273]
[1761663560788,0.3648,115140.0,115130.0,0.06060273]
[1761663561271,0.3608,115140.0,115130.0,0.06060273]
[1761663561477,0.3628,115140.0,115130.0,0.06060273]
[1761663561876,0.72847863,115140.0,115130.0,0.06060273]
[1761663562077,0.75154325,115140.0,115130.0,0.06060273]
[1761663563284,0.74954325,115140.0,115130.0,0.06060273]
[1761663565593,0.98954325,115140.0,115130.0,0.00434273]
[1761663565782,0.46659999,115130.0,115110.0,0.0132]
[1761663566078,0.71647863,115120.0,115110.0,0.0347]
[1761663566282,0.79954325,115120.0,115110.0,0.0347]
[1761663566482,1.13214325,115120.0,115110.0,0.0132]
[1761663566675,0.82214325,115120.0,115110.0,0.0132]
[1761663566875,0.82220662,115120.0,115110.0,0.0132]
[1761663567792,1.05280647,115120.0,115110.0,0.0132]
[1761663568172,1.05020647,115120.0,115100.0,0.01273]
[1761663568372,0.3634,115110.0,115100.0,0.01273]
[1761663568585,0.70646462,115110.0,115100.0,0.01273]
[1761663568783,1.30646462,115110.0,115100.0,0.01273]
[1761663569084,1.17646462,115110.0,115100.0,0.01273]
[1761663569780,0.3608,115110.0,115100.0,0.056724]
[1761663569987,0.3734,115110.0,115100.0,0.05662]
[1761663570183,0.44265551,115110.0,115100.0,0.01273]
[1761663570384,0.55265551,115110.0,115100.0,0.01273]
[1761663570688,0.71265551,115110.0,115100.0,0.01273]
[1761663570878,0.81265551,115110.0,115100.0,0.01273]
[1761663571281,1.00265551,115110.0,115100.0,0.01273]
[1761663571487,0.70586546,115110.0,115100.0,0.01273]
[1761663571689,1.21154409,115110.0,115100.0,0.01273]
[1761663571878,0.70586546,115110.0,115100.0,0.01273]
[1761663572078,1.06154409,115110.0,115100.0,0.01273]
[1761663572385,1.16154409,115110.0,115100.0,0.01273]
[1761663573387,1.06154409,115110.0,115100.0,0.01273]
[1761663573589,1.06154409,115110.0,115100.0,0.03423]
[1761663574195,1.06154409,115110.0,115100.0,0.05662]
[1761663574491,1.31154409,115110.0,115100.0,0.01273]
[1761663574995,0.70586546,115110.0,115100.0,0.03423]
[1761663575295,1.06154409,115110.0,115100.0,0.05662]
[1761663575786,1.17154409,115110.0,115100.0,0.03423]
[1761663575990,1.17154409,115110.0,115100.0,0.01273]
[1761663576895,1.06154409,115110.0,115100.0,0.01273]
[1761663577087,1.17154409,115110.0,115100.0,0.01273]
[1761663577287,1.17154409,115110.0,115100.0,0.03423]
[1761663577487,1.31154409,115110.0,115100.0,0.01273]
[1761663577989,1.91154409,115110.0,115100.0,0.01273]
[1761663578191,1.31154409,115110.0,115100.0,0.01273]
[1761663579586,1.06154409,115110.0,115100.0,0.01273]
[1761663579981,0.70586546,115110.0,115100.0,0.05662]
[1761663580195,1.17154409,115110.0,115100.0,0.05662]
[1761663580396,1.06154409,115110.0,115100.0,0.05662]
[1761663580590,0.70586546,115110.0,115100.0,0.05662]
[1761663580788,1.06154409,115110.0,115100.0,0.03423]
[1761663581190,1.39154409,115110.0,115100.0,0.03423]
[1761663581390,1.39154409,115110.0,115100.0,0.01273]
[1761663581591,1.06154409,115110.0,115100.0,0.01273]
[1761663581796,1.06154409,115110.0,115100.0,0.05662]
[1761663582995,1.06154,115110.0,115100.0,0.05662]
[1761663584093,1.03573414,115110.0,115100.0,0.05662]
[1761663584695,0.79573414,115110.0,115100.0,0.056724]
[1761663585700,0.70563429,115110.0,115100.0,0.056724]
[1761663586592,0.63637878,115110.0,115100.0,0.056724]
[1761663587094,0.3608,115110.0,115100.0,0.059324]
[1761663587693,0.360696,115110.0,115100.0,0.65922]
[1761663587892,0.360016,115110.0,115100.0,0.1461061]
[1761663588898,0.54228011,115120.0,115110.0,0.0573]
[1761663589094,0.36086337,115120.0,115110.0,0.0599]
[1761663594206,0.36086337,115120.0,115110.0,0.6599]
[1761663595302,0.36086337,115120.0,115110.0,0.6573]
[1761663595503,0.62644215,115120.0,115110.0,0.6573]
[1761663597009,0.62644215,115120.0,115110.0,0.6599]
[1761663597604,0.36086337,115120.0,115110.0,0.6599]
[1761663599304,0.45666337,115120.0,115110.0,0.6599]
[1761663600010,0.45666337,115120.0,115110.0,0.7467788]
[1761663600209,0.45666337,115120.0,115110.0,0.1467788]
[1761663600511,0.45666337,115120.0,115110.0,0.41235758]
[1761663601207,0.3608,115140.0,115130.0,0.1459137]
[1761663601403,0.3608,115140.0,115130.0,0.41149248]
[1761663601605,0.3608,115140.0,115130.0,0.1485137]
[1761663602007,0.4476621,115140.0,115130.0,0.1485137]
[1761663602315,0.4476463,115160.0,115150.0,0.1458986]
[1761663602509,0.08692664,115160.0,115150.0,0.1458986]
[1761663602699,0.44772664,115160.0,115150.0,0.06165]
[1761663602905,0.44772664,115160.0,115150.0,0.05905]
[1761663603215,0.45299001,115160.0,115150.0,0.05905]
[1761663603815,0.44872664,115160.0,115150.0,0.05905]
[1761663604208,0.08792664,115160.0,115150.0,0.1458986]
[1761663604417,0.00108034,115160.0,115150.0,0.42455798]
[1761663605318,0.00808034,115160.0,115150.0,0.78535798]
[1761663605917,0.4476295,115180.0,115170.0,0.1458835]
[1761663606212,0.4476226,115190.0,115180.0,0.1321157]
[1761663606412,0.4476226,115190.0,115180.0,0.41405448]
[1761663606611,0.0868226,115190.0,115180.0,0.77485448]
[1761663606814,0.0868226,115190.0,115180.0,0.5066757]
[1761663607015,0.08686482,115190.0,115180.0,0.5092757]
[1761663607412,4.222e-05,115190.0,115180.0,0.77485448]
[1761663607620,0.08686052,115190.0,115180.0,0.5092757]
[1761663608007,4.222e-05,115190.0,115180.0,0.5092757]
[1761663608207,0.08686072,115190.0,115180.0,0.77225448]
[1761663608415,0.08686072,115190.0,115180.0,0.77485448]
[1761663608710,0.48070219,115190.0,115180.0,0.05905]
[1761663608918,0.48596556,115190.0,115180.0,0.05905]
[1761663609114,0.75154434,115190.0,115180.0,0.05905]
[1761663609420,0.12516556,115190.0,115180.0,0.05705]
[1761663609617,0.48596556,115190.0,115180.0,0.05705]
[1761663610127,0.48796556,115190.0,115180.0,0.05705]
[1761663611621,0.75354434,115190.0,115180.0,0.05705]
[1761663612121,0.77664302,115190.0,115180.0,0.01376]
[1761663612423,0.0868261,115180.0,115170.0,0.01376]
[1761663612624,0.74410972,115180.0,115170.0,0.05803]
[1761663612922,0.74150972,115180.0,115170.0,0.05803]
[1761663613518,0.47693094,115180.0,115170.0,0.05803]
[1761663613719,0.11086757,115180.0,115170.0,0.05803]
[1761663613925,0.47166757,115180.0,115170.0,0.05803]
[1761663614515,0.47693094,115180.0,115170.0,0.05803]
[1761663614822,0.4486261,115180.0,115170.0,0.05803]
[1761663615320,0.4546261,115180.0,115170.0,0.05803]
[1761663616021,0.0938261,115180.0,115170.0,0.06063]
[1761663616526,0.0938261,115180.0,115170.0,0.05803]
[1761663617727,0.0938261,115180.0,115170.0,0.1448633]
[1761663617931,0.0938261,115180.0,115170.0,0.05803]
[1761663619522,0.09908947,115180.0,115170.0,0.05803]
[1761663620124,0.72546825,115180.0,115170.0,0.05803]
[1761663621416,0.72806825,115180.0,115170.0,0.01376]
[1761663621620,0.76020488,115180.0,115150.0,0.00849663]
[1761663621823,0.62637878,115160.0,115140.0,0.05827853]
[1761663622024,0.265621,115150.0,115140.0,0.06813522]
[1761663622911,4.222e-05,115150.0,115140.0,0.06813522]
[1761663624419,4.222e-05,115150.0,115140.0,0.15499122]
[1761663624721,0.00104222,115150.0,115140.0,0.78497]
[1761663625131,0.00104222,115150.0,115140.0,0.51939122]
[1761663626627,0.00104222,115150.0,115140.0,0.51939112]
[1761663626820,0.00104222,115150.0,115140.0,0.43253522]
[1761663627022,0.00104222,115150.0,115140.0,0.06913522]
[1761663627926,0.00104222,115150.0,115140.0,0.15599122]
[1761663628423,0.00104222,115150.0,115140.0,0.51939122]
[1761663628819,0.00104222,115150.0,115140.0,0.43253522]
[1761663629020,0.00104222,115150.0,115140.0,0.06913522]
[1761663629528,0.00104222,115150.0,115140.0,0.07173522]
[1761663629925,0.00104222,115150.0,115140.0,0.06913522]
[1761663630129,0.00104222,115150.0,115140.0,0.43253522]
[1761663630824,0.00104222,115150.0,115140.0,0.51939112]
[1761663632131,0.266621,115150.0,115140.0,0.06913522]
[1761663632324,0.00104222,115150.0,115140.0,0.06913522]
[1761663633622,0.00104222,115150.0,115140.0,0.15599142]
[1761663634424,0.00104222,115150.0,115140.0,0.15859142]
[1761663634626,0.00104222,115150.0,115140.0,0.51939142]
[1761663635028,0.08789072,115150.0,115140.0,0.51939142]
[1761663635229,0.08789072,115150.0,115140.0,0.15599142]
[1761663635630,0.08789072,115150.0,115140.0,0.15859142]
[1761663635831,0.08789072,115150.0,115140.0,0.06913522]